fUSD/lending_fUSD_20250127
["ID","MTS","AMOUNT","RATE_DAILY","PERIOD"]
[350522424,1737941462629,-264.2,0.00013,2]
[350522425,1737941462639,-264.2,0.00013,2]
[350522426,1737941462648,-264.2,0.00013,2]
[350522427,1737941462660,-264.2,0.00013,2]
[350522428,1737941462670,-264.2,0.00013,2]
[350522429,1737941462680,-264.2,0.00013,2]
[350522430,1737941462853,-264.2,0.00013,2]
[350522431,1737941462863,-264.2,0.00013,2]
[350522432,1737941462872,-264.2,0.00013,2]
[350522433,1737941462881,-264.2,0.00013,2]
[350522434,1737941462890,-264.2,0.00013,2]
[350522435,1737941462899,-264.2,0.00013,2]
[350522436,1737941462910,-264.2,0.00013,2]
[350522437,1737941462920,-264.2,0.00013,2]
[350522438,1737941462929,-264.2,0.00013,2]
[350522439,1737941462939,-264.2,0.00013,2]
[350522440,1737941462948,-264.2,0.00013,2]
[350522441,1737941462957,-264.2,0.00013,2]
[350522442,1737941462967,-264.2,0.00013,2]
[350522443,1737941462976,-264.2,0.00013,2]
[350522444,1737941462985,-264.2,0.00013,2]
[350522445,1737941462995,-264.2,0.00013,2]
[350522446,1737941463004,-264.2,0.00013,2]
[350522447,1737941463014,-264.2,0.00013,2]
[350522448,1737941463024,-264.2,0.00013,2]
[350522449,1737941463034,-264.2,0.00013,2]
[350522450,1737941463045,-264.2,0.00013,2]
[350522451,1737941463055,-264.2,0.00013,2]
[350522452,1737941463064,-264.2,0.00013,2]
[350522453,1737941463074,-264.2,0.00013,2]
[350522454,1737941463083,-264.2,0.00013,2]
[350522455,1737941463093,-264.2,0.00013,2]
[350522456,1737941463102,-264.2,0.00013,2]
[350522457,1737941463112,-264.2,0.00013,2]
[350522458,1737941463121,-264.2,0.00013,2]
[350522459,1737941463131,-264.2,0.00013,2]
[350522460,1737941463140,-264.2,0.00013,2]
[350522461,1737941463152,-264.2,0.00013,2]
[350522462,1737941463161,-264.2,0.00013,2]
[350522463,1737941463171,-264.2,0.00013,2]
[350522464,1737941463181,-264.2,0.00013,2]
[350522465,1737941463194,-264.2,0.00013,2]
[350522466,1737941463203,-264.2,0.00013,2]
[350522467,1737941463212,-264.2,0.00013,2]
[350522468,1737941463222,-264.2,0.00013,2]
[350522469,1737941463231,-264.2,0.00013,2]
[350522470,1737941463242,-264.2,0.00013,2]
[350522471,1737941463251,-264.2,0.00013,2]
[350522472,1737941463260,-264.2,0.00013,2]
[350522473,1737941463271,-264.2,0.00013,2]
[350522474,1737941463281,-264.2,0.00013,2]
[350522475,1737941463290,-264.2,0.00013,2]
[350522476,1737941463300,-264.2,0.00013,2]
[350522477,1737941463311,-264.2,0.00013,2]
[350522478,1737941463320,-264.2,0.00013,2]
[350522479,1737941463330,-264.2,0.00013,2]
[350522480,1737941463340,-264.2,0.00013,2]
[350522481,1737941463349,-264.2,0.00013,2]
[350522482,1737941463359,-264.2,0.00013,2]
[350522483,1737941463368,-264.2,0.00013,2]
[350522484,1737941463378,-264.2,0.00013,2]
[350522485,1737941463387,-264.2,0.00013,2]
[350522486,1737941463396,-264.2,0.00013,2]
[350522487,1737941463410,-264.2,0.00013,2]
[350522488,1737941463419,-264.2,0.00013,2]
[350522489,1737941463430,-264.2,0.00013,2]
[350522490,1737941463440,-264.2,0.00013,2]
[350522491,1737941463450,-264.2,0.00013,2]
[350522492,1737941463460,-264.2,0.00013,2]
[350522493,1737941463470,-264.2,0.00013,2]
[350522494,1737941463480,-264.2,0.00013,2]
[350522495,1737941463490,-264.2,0.00013,2]
[350522496,1737941463500,-264.2,0.00013,2]
[350522497,1737941463510,-264.2,0.00013,2]
[350522498,1737941463521,-264.2,0.00013,2]
[350522499,1737941463531,-264.2,0.00013,2]
[350522500,1737941463542,-264.2,0.00013,2]
[350522501,1737941463552,-264.2,0.00013,2]
[350522502,1737941463562,-264.2,0.00013,2]
[350522503,1737941463573,-525.33,0.00013063,2]
[350522504,1737941463583,-783.95422486,0.00013072,2]
[350522505,1737941463594,-500.0,0.00013095,2]
[350522506,1737941463604,-1400.0,0.00013142,2]
[350522507,1737941463614,-500.0,0.00013142,2]
[350522508,1737941463624,-500.0,0.00013232,2]
[350522509,1737941463633,-783.95422486,0.00013314,2]
[350522510,1737941463643,-500.0,0.00013369,2]
[350522511,1737941463656,-500.0,0.00013424,2]
[350522512,1737941463667,-378.85175952,0.00013424,2]
[350522513,1737941463676,-150.0,0.000135,2]
[350522514,1737941463686,-500.0,0.00013506,2]
[350522515,1737941463696,-783.95422486,0.00013555,2]
[350522516,1737941463705,-383.146885,0.0001357,2]
[350522517,1737941463715,-383.146885,0.0001357,2]
[350522518,1737941463725,-151.0,0.0001357,2]
[350522519,1737941463734,-526.86766847,0.00013643,2]
[350522520,1737941463744,-151.0,0.00013698,2]
[350522521,1737941463754,-248.485458,0.00013698,2]
[350522522,1737941463763,-248.485458,0.00013698,2]
[350522523,1737941463773,-197.043478,0.00013698,2]
[350522524,1737941463782,-197.043478,0.00013698,2]
[350522525,1737941463792,-151.0,0.00013698,2]
[350522526,1737941463802,-404.761183,0.00013698,2]
[350522527,1737941463812,-404.761187,0.00013698,2]
[350522528,1737941463822,-1021.21857507,0.00013698,2]
[350522529,1737941463832,-1842.54,0.00013698,2]
[350522530,1737941463842,-1842.54,0.00013698,2]
[350522531,1737941463852,-1842.54,0.00013698,2]
[350522532,1737941463862,-1842.54,0.00013698,2]
[350522533,1737941463873,-1842.54,0.00013698,2]
[350522534,1737941463882,-1842.54,0.00013698,2]
[350522535,1737941463892,-1842.54,0.00013698,2]
[350522536,1737941463902,-1842.54,0.00013698,2]
[350522537,1737941463912,-1842.54,0.00013698,2]
[350522538,1737941463922,-1842.54,0.00013698,2]
[350522539,1737941463931,-1842.54,0.00013698,2]
[350522540,1737941463942,-1842.54,0.00013698,2]
[350522541,1737941463952,-1842.54,0.00013698,2]
[350522542,1737941463962,-1842.54,0.00013698,2]
[350522543,1737941463971,-1842.54,0.00013698,2]
[350522544,1737941463981,-1842.54,0.00013698,2]
[350522545,1737941463991,-1842.54,0.00013698,2]
[350522546,1737941464001,-1842.54,0.00013698,2]
[350522547,1737941464011,-1842.54,0.00013698,2]
[350522548,1737941464021,-1842.54,0.00013698,2]
[350522549,1737941464031,-1842.54,0.00013698,2]
[350522550,1737941464042,-1842.54,0.00013698,2]
[350522551,1737941464052,-1842.54,0.00013698,2]
[350522552,1737941464062,-1842.54817035,0.00013698,2]
[350522553,1737941464072,-518.79842922,0.00013698,2]
[350522554,1737941464082,-3041.91493539,0.00013698,2]
[350522555,1737941464091,-540.42354038,0.00013698,2]
[350522556,1737941464101,-500.0,0.00013699,2]
[350522557,1737941464110,-500.0,0.00013699,2]
[350522558,1737941464120,-500.0,0.00013699,2]
[350522559,1737941464129,-500.0,0.00013699,2]
[350522560,1737941464138,-500.0,0.00013699,2]
[350522561,1737941464148,-500.0,0.00013699,2]
[350522562,1737941464160,-500.0,0.00013699,2]
[350522563,1737941464170,-500.0,0.00013699,2]
[350522564,1737941464179,-500.0,0.00013699,2]
[350522565,1737941464189,-500.0,0.00013699,2]
[350522566,1737941464200,-3435.87,0.00013699,2]
[350522567,1737941464212,-14104.98,0.00013699,2]
[350522568,1737941464222,-200.0,0.00013699,2]
[350522569,1737941464232,-14556.79,0.00013699,2]
[350522570,1737941464242,-500.0,0.00013699,2]
[350522571,1737941464252,-393.02,0.00013699,2]
[350522572,1737941464263,-9430.46,0.00013699,2]
[350522573,1737941464272,-394.31,0.00013699,2]
[350522574,1737941464282,-666.0,0.00013699,2]
[350522575,1737941464292,-666.0,0.00013699,2]
[350522576,1737941464302,-670.22324001,0.00013699,2]
[350522577,1737941464311,-666.0,0.00013699,2]
[350522578,1737941464321,-666.0,0.00013699,2]
[350522579,1737941464331,-666.0,0.00013699,2]
[350522580,1737941464341,-666.0,0.00013699,2]
[350522581,1737941464351,-500.0,0.00013699,2]
[350522582,1737941464360,-500.0,0.00013699,2]
[350522583,1737941464369,-500.0,0.00013699,2]
[350522584,1737941464379,-576.06444425,0.00013699,2]
[350522585,1737941464388,-150.0,0.000137,2]
[350522586,1737941464397,-5051.0,0.000137,2]
[350522587,1737941464408,-5051.0,0.000137,2]
[350522588,1737941464417,-783.95422486,0.00013797,2]
[350522589,1737941464426,-1000.0,0.0001388,2]
[350522590,1737941464436,-329.54,0.00013898,2]
[350522591,1737941464446,-162.97837213,0.000139,2]
[350522592,1737941464455,-1500.0,0.00013922,2]
[350522593,1737941464464,-194.88812724,0.00013999,2]
[350522594,1737941464473,-672.44042542,0.00013999,2]
[350522595,1737941464483,-666.0,0.00013999,2]
[350522596,1737941464493,-666.0,0.00013999,2]
[350522597,1737941464502,-3963.75921954,0.00014,2]
[350522598,1737941464512,-1000.0,0.00014,2]
[350522599,1737941464521,-749.0,0.00014,2]
[350522600,1737941464531,-150.0,0.00014,2]
[350522601,1737941464540,-11000.0,0.00014,2]
[350522602,1737941464549,-783.95422486,0.00014038,2]
[350522603,1737941464559,-783.95422486,0.00014279,2]
[350522604,1737941464568,-525.33,0.0001437,2]
[350522605,1737941464578,-394.31,0.00014384,2]
[350522606,1737941464587,-1761.08617864,0.0001439,2]
[350522607,1737941464596,-150.0,0.000145,2]
[350522608,1737941464605,-1400.0,0.00014512,2]
[350522609,1737941464615,-500.0,0.00014512,2]
[350522610,1737941464624,-783.95422486,0.00014521,2]
[350522611,1737941464634,-152.0,0.00014639,3]
[350522612,1737941464646,-201.42,0.00014711,2]
[350522613,1737941464656,-838.95815408,0.00014752,2]
[350522614,1737941464666,-783.95422486,0.00014762,2]
[350522615,1737941464675,-517.13,0.00014798,2]
[350522616,1737941464685,-150.0,0.00014833,2]
[350522617,1737941464695,-1572.278,0.00014833,2]
[350522618,1737941464704,-1000.0,0.00014868,2]
[350522619,1737941464714,-666.0,0.00014899,2]
[350522620,1737941464724,-6769.53526176,0.000149,2]
[350522621,1737941464733,-666.0,0.00014999,2]
[350522622,1737941464743,-801.0,0.00015,2]
[350522623,1737941464753,-1958.06712342,0.00015,2]
[350522624,1737941464764,-18123.45303275,0.00015,2]
[350522625,1737941464774,-14899.10456483,0.00015,2]
[350522626,1737941464786,-17091.14122928,0.00015,2]
[350522627,1737941464796,-8049.05747235,0.00015,2]
[350522628,1737941464805,-150.0,0.00015,2]
[350522629,1737941464819,-1168.62,0.00015,2]
[350522630,1737941464830,-545.59383774,0.00015,2]
[350522631,1737941464842,-10343.0,0.00015,2]
[350522632,1737941464853,-550.0,0.00015,2]
[350522633,1737941464862,-783.95422486,0.00015003,2]
[350522634,1737941464871,-1000.0,0.00015012,2]
[350522635,1737941464881,-300.0,0.00015068,2]
[350522636,1737941464890,-394.31,0.00015068,2]
[350522637,1737941464899,-152.0,0.00015099,4]
[350522638,1737941464909,-297.23934255,0.000151,2]
[350522639,1737941464917,-153.718402,0.00015143,14]
[350522640,1737941464927,-168.561009,0.00015143,14]
[350522641,1737941464938,-6452.0,0.000152,2]
[350522642,1737941464948,-576.45196716,0.0001522,2]
[350522643,1737941464958,-783.95422486,0.00015245,2]
[350522644,1737941464967,-151.0,0.00015253,2]
[350522645,1737941464977,-503.56,0.00015256,2]
[350522646,1737941464987,-1000.0,0.00015268,2]
[350522647,1737941464996,-1000.0,0.00015278,2]
[350522648,1737941465006,-329.54,0.00015288,2]
[350522649,1737941465016,-1517.64,0.000153,2]
[350522650,1737941465025,-666.0,0.00015309,2]
[350522651,1737941465035,-479.8,0.0001531,2]
[350522652,1737941465045,-15584.58,0.0001531,2]
[350522653,1737941465054,-7473.9,0.0001531,2]
[350522654,1737941465063,-299.99,0.0001531,2]
[350522655,1737941465072,-1000.0,0.00015331,2]
[350522656,1737941465082,-666.0,0.00015399,2]
[350522657,1737941465091,-485.25065797,0.000154,2]
[350522658,1737941465100,-14777.50067077,0.000154,2]
[350522659,1737941465110,-1000.0,0.00015457,2]
[350522660,1737941465159,-150.0,0.00015485,2]
[350522661,1737941465170,-783.95422486,0.00015486,2]
[350522662,1737941465181,-152.0,0.0001556,5]
[350522663,1737941465195,-3735.09656,0.000156,2]
[350522664,1737941465206,-5560.0,0.000156,3]
[350522665,1737941465216,-1000.0,0.00015617,2]
[350522666,1737941465226,-150.0,0.00015653,2]
[350522667,1737941465238,-150.0,0.00015672,2]
[350522668,1737941465248,-525.33,0.00015676,2]
[350522669,1737941465258,-150.0,0.00015676,2]
[350522670,1737941465267,-783.95422486,0.00015728,2]
[350522671,1737941465278,-150.0,0.00015742,2]
[350522672,1737941465288,-150.0,0.00015748,2]
[350522673,1737941465297,-394.31,0.00015753,2]
[350522674,1737941465306,-1000.0,0.00015784,2]
[350522675,1737941465315,-389.2046407,0.00015799,2]
[350522676,1737941465325,-150.0,0.00015823,2]
[350522677,1737941465334,-1133.5637377,0.00015836,2]
[350522678,1737941465344,-150.0,0.00015838,2]
[350522679,1737941465354,-150.0,0.00015857,2]
[350522680,1737941465363,-666.0,0.00015869,2]
[350522681,1737941465373,-500.0,0.00015869,2]
[350522682,1737941465382,-500.0,0.00015869,2]
[350522683,1737941465392,-494.0,0.00015869,2]
[350522684,1737941465401,-200.0,0.00015869,2]
[350522685,1737941465413,-200.0,0.00015869,2]
[350522686,1737941465423,-200.0,0.00015869,2]
[350522687,1737941465432,-200.0,0.00015869,2]
[350522688,1737941465442,-204.0,0.00015869,2]
[350522689,1737941465451,-85005.0,0.0001587,2]
[350522690,1737941465460,-383.146885,0.0001587,2]
[350522691,1737941465470,-383.146885,0.0001587,2]
[350522692,1737941465479,-151.0,0.0001587,2]
[350522693,1737941465488,-151.0,0.0001587,2]
[350522694,1737941465498,-248.485458,0.0001587,2]
[350522695,1737941465508,-248.48546,0.0001587,2]
[350522696,1737941465518,-197.043478,0.0001587,2]
[350522697,1737941465528,-197.043481,0.0001587,2]
[350522698,1737941465538,-150.0,0.00015878,2]
[350522699,1737941465548,-1400.0,0.00015882,2]
[350522700,1737941465557,-500.0,0.00015882,2]
[350522701,1737941465567,-150.0,0.00015888,2]
[350522702,1737941465577,-1133.5637377,0.0001589,2]
[350522703,1737941465587,-150.0,0.00015899,2]
[350522704,1737941465597,-150.0,0.00015899,2]
[350522705,1737941465606,-162.97837213,0.000159,2]
[350522706,1737941465616,-5560.0,0.000159,5]
[350522707,1737941465626,-170.94,0.00015903,2]
[350522708,1737941465636,-150.0,0.00015945,2]
[350522709,1737941465645,-678.16746758,0.00015949,2]
[350522710,1737941465657,-145800.0,0.0001595,3]
[350522711,1737941465667,-232.197244,0.0001595,2]
[350522712,1737941465676,-232.197244,0.0001595,2]
[350522713,1737941465685,-151.0,0.0001595,2]
[350522714,1737941465695,-783.95422486,0.00015969,2]
[350522715,1737941465705,-150.0,0.00015972,2]
[350522716,1737941465714,-1133.5637377,0.00015973,2]
[350522717,1737941465723,-500.0,0.00015973,2]
[350522718,1737941465733,-500.0,0.00015973,2]
[350522719,1737941465742,-500.0,0.00015973,2]
[350522720,1737941465751,-500.0,0.00015973,2]
[350522721,1737941465760,-315.73253755,0.00015973,2]
[350522722,1737941465770,-160.20421408,0.00015973,2]
[350522723,1737941465779,-520.33767337,0.00015973,2]
[350522724,1737941465788,-152.02610715,0.00015973,2]
[350522725,1737941465798,-500.0,0.00015973,2]
[350522726,1737941465807,-516.79767375,0.00015973,2]
[350522727,1737941465817,-152.04101858,0.00015973,2]
[350522728,1737941465826,-500.0,0.00015973,2]
[350522729,1737941465836,-500.0,0.00015973,2]
[350522730,1737941465846,-500.0,0.00015973,2]
[350522731,1737941465855,-500.0,0.00015973,2]
[350522732,1737941465865,-152.5139699,0.00015973,2]
[350522733,1737941465874,-1000.0,0.00015977,2]
[350522734,1737941465883,-218.3533657,0.00015989,2]
[350522735,1737941465893,-218.3533657,0.00015989,2]
[350522736,1737941465902,-477.1087769,0.00015989,2]
[350522737,1737941465915,-477.1087769,0.00015989,2]
[350522738,1737941465925,-150.0,0.00015994,2]
[350522739,1737941465934,-150.0,0.00015997,2]
[350522740,1737941465944,-1000.0,0.00016,2]
[350522741,1737941465953,-21393.65150558,0.00016,2]
[350522742,1737941465963,-255.20232781,0.00016,2]
[350522743,1737941465973,-418424.66900243,0.00016,15]
[350522744,1737941466152,-3572.60200244,0.00016,15]
[350522745,1737941466179,-20364.0,0.00016,15]
[350522746,1737941466191,-14999.97798,0.00016,15]
[350522747,1737941466205,-4983.80413441,0.00016,15]
[350522748,1737941466218,-13961.16000001,0.00016,15]
[350522749,1737941466230,-4067.27646384,0.00016,15]
[350522750,1737941466242,-7068.2902857,0.00016,15]
[350522751,1737941466254,-35422.3977304,0.00016,15]
[350522752,1737941466266,-800.11342999,0.00016,15]
[350522753,1737941466278,-7899.75603256,0.00016,15]
[350522760,1737941706519,233.27,0.00016658,30]
[350522764,1737942439565,1950.9,0.00022,120]
[350522769,1737942569202,500.92183316,0.00022,120]
[350522774,1737942632421,-345.3348,0.0001,2]
[350522775,1737942632625,-155.95988004,0.0001,2]
[350522776,1737942632637,-157.01,0.00010137,2]
[350522777,1737942632647,-402.84,0.00011664,2]
[350522778,1737942632656,-200.0,0.00011857,2]
[350522779,1737942632665,-164.98246564,0.00011864,2]
[350522780,1737942632681,-135.01753436,0.00011864,2]
[350522781,1737942632690,-249.87,0.00011865,2]
[350522782,1737942632699,-246.29,0.00011865,2]
[350522783,1737942632708,-245.51,0.00011865,2]
[350522784,1737942632717,-152.10246564,0.00011865,2]
[350522785,1737942632728,-101.22753436,0.00011865,2]
[350522786,1737942632738,-249.42,0.00011865,2]
[350522787,1737942632747,-247.9,0.00011865,2]
[350522788,1737942632756,-69.12465017,0.00011865,2]
[350522789,1737942632767,-177.14534983,0.00011865,2]
[350522790,1737942632775,-254.21,0.00011865,2]
[350522791,1737942632784,-251.05,0.00011865,2]
[350522792,1737942632793,-253.03,0.00011865,2]
[350522793,1737942632802,-247.71,0.00011865,2]
[350522794,1737942632812,-245.06,0.00011865,2]
[350522795,1737942632821,-247.34,0.00011865,2]
[350522796,1737942632830,-200.0,0.00011894,2]
[350522798,1737942632839,-2773.62760487,0.000119,2]
[350522801,1737942632850,-5443.90439513,0.000119,2]
[350522802,1737942632860,-150.0,0.00011997,2]
[350522804,1737942632869,-548.1597257,0.00011998,2]
[350522805,1737942632878,-516.75226145,0.00011998,2]
[350522806,1737942632886,-529.02065537,0.00011998,2]
[350522807,1737942632895,-506.8522406,0.00011998,2]
[350522808,1737942632904,-512.09616782,0.00011998,2]
[350522810,1737942632913,-503.14397381,0.00011998,2]
[350522811,1737942632925,-509.6856155,0.00011998,2]
[350522813,1737942632934,-512.50807675,0.00011998,2]
[350522815,1737942632943,-221.52391382,0.00011998,2]
[350522817,1737942632952,-501.90480473,0.00011998,2]
[350522819,1737942632961,-504.95283483,0.00011998,2]
[350522821,1737942632970,-42.84931268,0.00011998,2]
[350522824,1737942632981,-417.07562121,0.00011998,2]
[350522827,1737942633003,-60.90397684,0.00011998,2]
[350522829,1737942633012,-505.23618596,0.00011998,2]
[350522831,1737942633020,-507.48310227,0.00011998,2]
[350522833,1737942633029,-511.73837105,0.00011998,2]
[350522835,1737942633038,-508.73263818,0.00011998,2]
[350522837,1737942633047,-461.01729903,0.00011998,2]
[350522903,1737942638365,-43.41301749,0.00011998,2]
[350522904,1737942638375,-511.03569961,0.00011998,2]
[350522905,1737942638384,-503.66438913,0.00011998,2]
[350522906,1737942638394,-513.37624714,0.00011998,2]
[350522907,1737942638403,-547.81115807,0.00011998,2]
[350522908,1737942638412,-508.02599537,0.00011998,2]
[350522909,1737942638422,-506.11393727,0.00011998,2]
[350522910,1737942638431,-514.52405598,0.00011998,2]
[350522911,1737942638441,-512.37825503,0.00011998,2]
[350522912,1737942638451,-520.84947357,0.00011998,2]
[350522913,1737942638460,-507.32908734,0.00011998,2]
[350522914,1737942638470,-505.48287754,0.00011998,2]
[350522915,1737942638480,-500.0,0.00011998,2]
[350522916,1737942638489,-508.47447809,0.00011998,2]
[350522917,1737942638499,-518.18518133,0.00011998,2]
[350522918,1737942638508,-514.53776467,0.00011998,2]
[350522919,1737942638518,-513.50349928,0.00011998,2]
[350522920,1737942638527,-513.73323554,0.00011998,2]
[350522921,1737942638537,-505.04684851,0.00011998,2]
[350522922,1737942638546,-504.97855474,0.00011998,2]
[350522923,1737942638557,-8.2362443,0.00011998,2]
[350522924,1737942638569,-494.3064438,0.00011998,2]
[350522925,1737942638578,-145.5313724,0.00011998,2]
[350522926,1737942638589,-361.66597907,0.00011998,2]
[350522927,1737942638601,-502.33610224,0.00011998,2]
[350522928,1737942638611,-506.67707263,0.00011998,2]
[350522929,1737942638620,-514.26967832,0.00011998,2]
[350522930,1737942638630,-510.91600013,0.00011998,2]
[350522931,1737942638641,-505.37128189,0.00011998,2]
[350522932,1737942638650,-512.5130697,0.00011998,2]
[350522933,1737942638661,-365.25081602,0.00011998,2]
[350522934,1737942638673,-147.8968204,0.00011998,2]
[350522935,1737942638684,-259.98168093,0.00011998,2]
[350522936,1737942638707,-335.10511577,0.00011998,2]
[350522937,1737942638716,-509.57770434,0.00011998,2]
[350522938,1737942638725,-505.55478049,0.00011998,2]
[350522939,1737942638734,-248.34989695,0.00011998,2]
[350522940,1737942638744,-321.96279309,0.00011998,2]
[350522941,1737942638755,-180.33245133,0.00011998,2]
[350522942,1737942638765,-511.03030267,0.00011998,2]
[350522943,1737942638774,-513.58238495,0.00011998,2]
[350522944,1737942638784,-506.70317433,0.00011998,2]
[350522945,1737942638794,-513.02832779,0.00011998,2]
[350522946,1737942638803,-511.21884453,0.00011998,2]
[350522947,1737942638812,-514.94921968,0.00011998,2]
[350522948,1737942638822,-500.0,0.00011998,2]
[350522949,1737942638831,-500.0,0.00011998,2]
[350522950,1737942638840,-517.79528323,0.00011998,2]
[350522951,1737942638850,-543.74545358,0.00011998,2]
[350522952,1737942638859,-535.08696512,0.00011998,2]
[350522953,1737942638869,-500.0,0.00011998,2]
[350522954,1737942638879,-533.16309679,0.00011998,2]
[350522955,1737942638888,-533.3451319,0.00011998,2]
[350522956,1737942638897,-159.97658027,0.00011998,2]
[350522957,1737942638906,-511.62240949,0.00011998,2]
[350522958,1737942638916,-500.0,0.00011998,2]
[350522960,1737942638925,-505.61582952,0.00011998,2]
[350522962,1737942638936,-508.49173843,0.00011998,2]
[350522964,1737942638945,-510.7181769,0.00011998,2]
[350522966,1737942638954,-515.44954388,0.00011998,2]
[350522968,1737942638964,-454.43646956,0.00011999,2]
[350522970,1737942638973,-500.0,0.00011999,2]
[350522972,1737942638983,-515.07131308,0.00011999,2]
[350522974,1737942638992,-500.0,0.00011999,2]
[350522976,1737942639001,-217.68342395,0.00011999,2]
[350522978,1737942639011,-155.704376,0.00012,2]
[350522980,1737942639020,-150.303,0.00012233,2]
[350522982,1737942639030,-639.501,0.00012233,2]
[350522984,1737942639039,-568.634,0.00012233,2]
[350522986,1737942639048,-325.89,0.00012233,2]
[350522988,1737942639057,-150.0,0.00012233,2]
[350522990,1737942639066,-150.0,0.00012233,2]
[350522992,1737942639075,-246.44,0.00012329,2]
[350522994,1737942639084,-194.68667344,0.00012329,2]
[350522996,1737942639094,-500.0,0.00012868,2]
[350522998,1737942639104,-1000.0,0.00012868,2]
[350523000,1737942639113,-2296.294,0.00012992,2]
[350523002,1737942639124,-165.858,0.00012992,2]
[350523004,1737942639133,-420.0,0.00013026,2]
[350523006,1737942639141,-155.704376,0.00013292,2]
[350523025,1737942639325,-500.0,0.00013534,2]
[350523027,1737942639335,-177.78,0.00013549,2]
[350523028,1737942639345,-500.0,0.00013699,2]
[350523030,1737942639355,-314.41,0.00013699,2]
[350523032,1737942639365,-1000.0,0.00013718,2]
[350523034,1737942639376,-4000.0,0.00013751,2]
[350523036,1737942639385,-250.0,0.00013751,2]
[350523038,1737942639395,-500.0,0.00013757,2]
[350523040,1737942639404,-197.15,0.00013833,2]
[350523041,1737942639414,-200.0,0.00013846,2]
[350523042,1737942639423,-164.77,0.00013855,2]
[350523043,1737942639435,-500.0,0.00013888,2]
[350523044,1737942639444,-402.84,0.00013928,2]
[350523045,1737942639454,-500.0,0.00014238,2]
[350523046,1737942639463,-1000.0,0.00014238,2]
[350523047,1737942639473,-150.0,0.00014276,2]
[350523048,1737942639483,-587.0,0.00014302,2]
[350523049,1737942639493,-150.0,0.00014477,2]
[350523050,1737942639502,-1762.9,0.00014504,2]
[350523051,1737942639511,-20906.39,0.00014504,2]
[350523052,1737942639521,-155.704376,0.00014585,2]
[350523053,1737942639531,-150.0,0.0001463,2]
[350523054,1737942639540,-150.0,0.00014668,2]
[350523055,1737942639551,-150.0,0.00014672,2]
[350523056,1737942639562,-150.0,0.00014692,2]
[350523057,1737942639571,-150.0,0.00014707,2]
[350523058,1737942639581,-150.0,0.00014778,2]
[350523059,1737942639590,-150.0,0.00014787,2]
[350523060,1737942639601,-150.0,0.00014791,2]
[350523061,1737942639611,-150.0,0.00014822,2]
[350523062,1737942639620,-150.0,0.00014833,2]
[350523063,1737942639631,-150.0,0.00014833,2]
[350523064,1737942639640,-150.0,0.00014842,2]
[350523065,1737942639650,-150.0,0.00014844,2]
[350523066,1737942639659,-150.0,0.0001485,2]
[350523067,1737942639668,-150.0,0.00014853,2]
[350523068,1737942639677,-150.0,0.00014859,2]
[350523069,1737942639687,-150.0,0.00014869,2]
[350523070,1737942639697,-500.0,0.0001488,2]
[350523071,1737942639706,-150.0,0.00014893,2]
[350523072,1737942639716,-215.2968061,0.000149,2]
[350523073,1737942639726,-215.2968061,0.000149,2]